Cogmind - Beta 16.1 @@@ ROGUE MODE // 2026.02.03 @ 00:29:03 Player: JuustuToug Result: Destroyed by C-57 Dissector with Dual-blade Saw Performance ------------- Evolutions (9) 4500 Regions Visited (22) 4400 Robots Destroyed (380) 1900 Value Destroyed (17214) 17214 Prototype IDs (82) 1640 Alien Tech Used (4) 800 Bonus (25186) 25186 TOTAL SCORE: 55640 Bonus ------- High Alert Combat Kills 3071 Follower Combat Kills 2343 Hunted by Unchained 500 Aligned with FarCom 300 Met Imprinter 300 Built Enhanced Grunts 300 A7 Reached Mainframe 300 Met R17 at Cetus 500 Found Hidden Lab 3000 Used Core Reset Matrix 3000 Met R17 at Research 2000 Pursued by Intercept 500 Destroyed MAIN.C Guards 500 Met MAIN.C 5000 Destroyed MAIN.C Shell 5000 Friendly Fire -1428 Cogmind --------- Core Integrity 0/1600 Matter 214/300 Energy 98/100 System Corruption 31% Temperature Cool (9) Movement Core (50) Location -1/Command Parts ------- > --- POWER (3) -------- (None) > --- PROPULSION (6) --- (None) > --- UTILITY (14) ----- (None) > --- WEAPON (3) ------- (None) > --- INVENTORY (5) ---- Particle Reactor Advanced Coolant Injector Experimental Coolant Injector Long-range Tractor Beam Compact HERF Cannon Peak State ------------ > --- POWER ------------ Particle Reactor Quantum Reactor Reinforced Quantum Reactor > --- PROPULSION ------- Advanced Heavy Siege Treads Advanced Heavy Siege Treads Advanced Heavy Siege Treads > --- UTILITY ---------- Advanced Heat Sink Experimental Heat Sink Experimental Heat Sink High-capacity Storage Unit Experimental Optical Array Core Analyzer Quantum Capacitor Advanced Transmission Jammer Experimental Phase Shifter Graphene Brace Advanced Point Defense System Experimental Hacking Suite Quantum Router > --- WEAPON ----------- Enhanced Quantum Rifle Compact HERF Cannon Enhanced Nova Cannon > --- INVENTORY -------- Particle Reactor Light Quantum Reactor Light Quantum Reactor Light Quantum Reactor Advanced Heavy Siege Treads Advanced Heat Sink Advanced Heat Sink Advanced Heat Sink Experimental Coolant Injector Advanced Transmission Jammer Advanced ECM Suite Advanced Phase Shifter Long-range Tractor Beam Transdimensional Reconstructor Compact HERF Cannon Long-range Phase Cannon Nova Cannon Fusion Bomb Launcher Fusion Bomb Launcher [Rating: 217] Favorites ----------- Power Quantum Reactor Engine Cooled Ion Engine Power Core Fission Core Reactor Quantum Reactor Propulsion Improved Treads Treads Improved Treads Leg Enhanced Flexi-carbon Leg Wheel Armored Huge Wheel Utility High-capacity Storage Unit Device Advanced Heat Sink Storage High-capacity Storage Unit Processor Core Analyzer Hackware Experimental Hacking Suite Protection Centrium Medium Armor Plating Weapon Heavy Particle Cannon Energy Gun Enhanced Quantum Rifle Energy Cannon Heavy Particle Cannon Ballistic Gun Advanced KE Penetrator Ballistic Cannon Heavy Gauss Cannon Launcher Heavy Missile Launcher Impact Weapon Hammer Slashing Weapon Segregator Piercing Weapon Spear Special Melee Weapon Improved Datajack Build | -11 -10 -10 -10 -9 -8 -7 -7 -7 -7 -6 -6 -5 -4 -4 -4 -4 -3 -3 -3 -2 -1 -1 ------- Run | Yrd Mat Min Exi Min Mat Fac Low Low Zio Pro Fac Fac Fac Ext Cet Arc Res Arm Lab Res Acc Com Slots Evolved 18 | . . . . . 4 2 . . . . 2 2 2 . . . 2 . . 2 2 . Power 2 | . . . . . . . . . . . . 1 . . . . . . . . 1 . Propulsion 3 | . . . . . 2 . . . . . 1 . . . . . . . . . . . Utility 12 | . . . . . 2 1 . . . . 1 1 2 . . . 2 . . 2 1 . Weapon 1 | . . . . . . 1 . . . . . . . . . . . . . . . . Parts Attached 285 | 8 15 3 4 2 15 12 2 2 7 2 16 29 10 9 18 3 27 27 8 19 8 39 Power 34 | 1 2 1 1 . 2 . . . . . 2 3 . 2 1 1 3 3 . 4 1 7 Engine 9 | 1 2 1 1 . 2 . . . . . 1 1 . . . . . . . . . . Core 3 | . . . . . . . . . . . 1 . . 2 . . . . . . . . Reactor 22 | . . . . . . . . . . . . 2 . . 1 1 3 3 . 4 1 7 Propulsion 50 | 2 3 2 . . 5 3 . . . 1 5 5 1 1 3 . 3 3 . 3 . 10 Treads 48 | 2 3 2 . . 5 3 . . . 1 4 5 1 1 2 . 3 3 . 3 . 10 Leg 1 | . . . . . . . . . . . . . . . 1 . . . . . . . Wheel 1 | . . . . . . . . . . . 1 . . . . . . . . . . . Hover . | . . . . . . . . . . . . . . . . . . . . . . . Flight . | . . . . . . . . . . . . . . . . . . . . . . . Utility 124 | 3 4 . 1 1 2 6 1 1 6 1 4 16 6 3 7 2 16 12 4 6 5 17 Device 77 | 2 1 . . . 1 4 1 1 1 1 3 14 2 1 4 2 12 8 3 3 4 9 Storage 8 | 1 3 . 1 . . 1 . . . . . . 1 . . . . 1 . . . . Processor 14 | . . . . 1 1 1 . . 5 . 1 1 2 . . . 1 . . 1 . . Hackware 7 | . . . . . . . . . . . . . . . . . . 3 . 1 1 2 Protection 18 | . . . . . . . . . . . . 1 1 2 3 . 3 . 1 1 . 6 Artifact . | . . . . . . . . . . . . . . . . . . . . . . . Weapon 77 | 2 6 . 2 1 6 3 1 1 1 . 5 5 3 3 7 . 5 9 4 6 2 5 Energy Gun 20 | 1 2 . 1 . 2 . . . . . . . 1 . 3 . 1 5 2 2 . . Energy Cannon 20 | . . . . . 2 1 . 1 . . 4 2 . 1 . . 1 2 1 2 1 2 Ballistic Gun 16 | 1 2 . 1 . 1 . . . . . . . . 2 4 . 2 1 . 1 . 1 Ballistic Cannon 4 | . . . . . . . . . . . . 1 1 . . . . 1 . . . 1 Launcher 9 | . . . . 1 . 1 1 . . . . 2 1 . . . . . 1 1 1 . Special Weapon . | . . . . . . . . . . . . . . . . . . . . . . . Impact Weapon 3 | . 2 . . . . . . . 1 . . . . . . . . . . . . . Slashing Weapon 1 | . . . . . . . . . . . . . . . . . . . . . . 1 Piercing Weapon 3 | . . . . . 1 . . . . . 1 . . . . . 1 . . . . . Special Melee Weapon 1 | . . . . . . 1 . . . . . . . . . . . . . . . . Unidentified Prototypes 52 | . . . . . 1 1 . . 6 . . 9 2 . 6 . 8 7 7 4 . 1 Corrupted Parts 6 | . . . . . . . . . . . . 1 . . 5 . . . . . . . System Corruption 38 | . . . . . . . . . . . . 10 . . 28 . . . . . . . Parts Lost 52 | . 2 1 . . . . . . . 1 5 6 3 . . . 5 1 . . 1 27 Power 9 | . . 1 . . . . . . . . 1 . 1 . . . . . . . . 6 Propulsion 8 | . . . . . . . . . . 1 . . . . . . 2 . . . . 5 Utility 24 | . 1 . . . . . . . . . 3 5 2 . . . 2 1 . . 1 9 Weapon 11 | . 1 . . . . . . . . . 1 1 . . . . 1 . . . . 7 Highest Loss Streak 19 | . 1 1 . . . . . . . 1 3 3 2 . . . 5 1 . . 1 19 To Critical Strikes . | . . . . . . . . . . . . . . . . . . . . . . . Average Backups 18 | 2 17 19 19 20 19 19 20 20 19 18 19 19 18 18 19 20 19 19 19 19 17 16 Power . | . 1 1 3 3 . . . . . . 1 . . . . 1 1 1 1 1 1 2 Propulsion 4 | . 7 8 6 5 5 5 5 5 5 4 4 5 6 5 4 4 3 3 2 2 3 1 Utility 6 | . 3 4 4 4 4 5 7 7 6 5 4 6 4 5 7 8 7 9 11 8 7 6 Weapon 6 | 1 5 6 5 6 8 7 7 7 7 8 7 6 7 8 7 7 6 5 3 5 4 4 Tool/Special . | . . . . . . . . . . . . . . . . . . . . . . . Unused Backups 59 | . 1 1 3 2 5 1 . . 4 . . 7 2 2 4 . 5 3 . 9 3 7 Power 6 | . . . 1 . 2 . . . . . . . . . . . 1 1 . 1 . . Propulsion 14 | . . . 1 1 . . . . . . . 4 2 . 3 . . . . . . 3 Utility 27 | . 1 . 1 1 . 1 . . 4 . . . . 2 . . 3 1 . 7 3 3 Weapon 12 | . . 1 . . 3 . . . . . . 3 . . 1 . 1 1 . 1 . 1 Tool/Special . | . . . . . . . . . . . . . . . . . . . . . . . Average Slot Usage (%) 93 | . 99 99 100 100 99 99 100 100 96 99 91 92 84 89 90 89 90 84 84 86 87 82 Engine 5 | . 14 13 14 14 9 7 7 7 7 7 1 8 . . . . . . . . . . Reactor 3 | . . . . . . . . . . . . 2 6 5 9 10 9 9 9 8 10 10 Treads 22 | . 28 28 28 28 35 30 30 30 30 29 19 17 21 22 16 15 14 14 15 15 15 11 Device 17 | . 13 14 14 5 8 14 15 15 14 15 12 15 15 15 19 21 24 27 22 24 27 27 Storage 7 | . 14 14 14 14 9 7 7 7 7 7 6 5 5 5 5 5 4 4 4 4 3 2 Processor 10 | . . . . 8 17 15 15 15 15 15 19 17 18 15 15 15 14 9 9 8 7 5 Hackware 1 | . . . . . . . . . . . . . . . . . . . 4 7 7 8 Protection 1 | . . . . . . . . . . . . . 1 7 6 5 7 4 4 3 1 . Energy Gun 4 | . 13 14 14 14 1 . . . . . . . 3 2 5 . . 4 5 6 2 2 Energy Cannon 7 | . . . . . 15 15 15 15 11 15 15 14 8 5 1 . . 3 6 5 7 7 Ballistic Gun 3 | . 12 14 14 12 . . . . . . . . . 5 8 15 13 . . . . . Piercing Weapon 1 | . . . . . . 5 6 6 7 6 3 1 1 . . . . . . . . . Peak Build Rating 217 | 13 13 14 15 16 33 44 44 44 51 45 54 100 120 125 149 148 168 171 180 199 215 217 Average Rating 89 | 5 10 13 14 15 30 41 43 43 43 43 50 74 108 115 142 147 160 163 172 195 208 206 On Entrance 82 | 1 7 13 14 15 16 33 43 43 44 45 44 54 95 113 115 146 148 161 171 180 194 208 Avg Prop Armor Cover (%) 14 | . . . . . . . . . 6 6 22 21 . . 1 . . 5 . . . . Naked Turns 15 | . . . . . . . . . . . . . . . . . . . . . . 15 Heaviest Build 155 | 14 50 49 49 47 61 68 69 70 65 70 71 104 99 111 114 110 121 124 129 135 152 155 Greatest Support 240 | 40 46 46 46 46 86 94 94 94 94 71 83 180 180 180 195 195 195 175 205 205 205 240 Greatest Overweight (x) 3 | . 1 1 1 1 . . . . . 1 2 3 . . . . . . . . . 1 Average Overweight (x) . | . . . . . . . . . . . 1 2 . . . . . . . . . . Largest Inventory Capacity 20 | 8 20 20 20 20 20 20 20 20 20 20 20 20 20 20 20 20 20 20 20 20 20 20 Average Capacity 19 | 7 18 20 20 20 20 20 20 20 20 20 20 20 20 20 20 20 20 20 20 20 20 19 Most Carried 20 | 5 20 20 20 20 20 20 20 20 20 19 20 20 20 20 20 20 20 20 20 20 20 20 Average Carried 19 | 2 17 19 19 19 19 19 20 20 19 18 19 19 19 19 19 20 19 19 19 19 18 18 Final Capacity 20 | 8 20 20 20 20 20 20 20 20 20 20 20 20 20 20 20 20 20 20 20 20 20 5 Final Carried 20 | 3 19 20 20 20 20 20 20 20 19 19 19 20 20 20 20 20 20 20 20 20 18 5 Class Distribution -------------------- 43% | Mutant 14% | Scavenger-Tank 12% | Hacker-Tank 8% | Scavenger-Skirmisher 6% | Scavenger-Assassin 5% | Scavenger-Mutant 3% | Tank Dominant Class ---------------- Mutant | -10/Materials Mutant | -10/Mines Mutant | -10/Exiles Mutant | -9/Mines Scavenger-Mutant | -8/Materials Mutant | -7/Factory Mutant | -7/Lower Caves Mutant | -7/Lower Caves Mutant | -7/Zion Mutant | -6/Proximity Caves Scavenger-Assassin | -6/Factory Scavenger-Skirmisher | -5/Factory Scavenger-Skirmisher | -4/Factory Scavenger-Tank | -4/Extension Scavenger-Tank | -4/Cetus Scavenger-Tank | -4/Archives Scavenger-Tank | -3/Research Scavenger-Tank | -3/Armory Tank | -3/Lab Hacker-Tank | -2/Research Hacker-Tank | -1/Access Hacker-Tank | -1/Command Resources | -11 -10 -10 -10 -9 -8 -7 -7 -7 -7 -6 -6 -5 -4 -4 -4 -4 -3 -3 -3 -2 -1 -1 ----------- Run | Yrd Mat Min Exi Min Mat Fac Low Low Zio Pro Fac Fac Fac Ext Cet Arc Res Arm Lab Res Acc Com Matter Collected 9011 | 240 744 46 . 161 239 180 104 248 156 101 312 851 345 596 555 124 1331 597 85 500 207 1289 Remotely 1225 | . . . . . . . . . . . . . . . . . 435 . . 98 . 692 Salvage Created 19740 | 173 1932 141 . 40 489 769 273 219 . 103 1594 2095 1055 1145 . 83 1950 1248 85 1833 994 3519 Parts 856 | 12 135 12 . 1 36 43 8 7 . 3 51 90 31 34 . 3 77 73 5 66 55 114 Haulers Intercepted 15 | . 2 . . . 3 3 . . . . . 2 3 1 . . 1 . . . . . Recyclers Shooed 20 | . 3 1 . . 1 1 . . . . 3 1 5 . . . 1 . . 4 . . Parts Field Recycled . | . . . . . . . . . . . . . . . . . . . . . . . Retrieved Matter . | . . . . . . . . . . . . . . . . . . . . . . . Parts Self-Destructed 21 | . . . . . . . 8 5 4 4 . . . . . . . . . . . . Prevented 2 | . . . . . . . . 2 . . . . . . . . . . . . . . Parts Restored . | . . . . . . . . . . . . . . . . . . . . . . . Kills | -11 -10 -10 -10 -9 -8 -7 -7 -7 -7 -6 -6 -5 -4 -4 -4 -4 -3 -3 -3 -2 -1 -1 ------- Run | Yrd Mat Min Exi Min Mat Fac Low Low Zio Pro Fac Fac Fac Ext Cet Arc Res Arm Lab Res Acc Com Combat Hostiles Destroyed 256 | . 14 5 . 3 7 5 6 10 . 5 17 32 9 12 . 1 31 18 1 21 15 44 Melee 5 | . 4 . . . . . . . . . 1 . . . . . . . . . . . Guns 43 | . 10 5 . . 1 . . . . . . . . 4 . 1 20 1 . . . 1 Cannons 116 | . . . . . 3 5 2 4 . 1 15 15 5 5 . . . 14 . 12 10 25 AOE 76 | . . . . 3 3 . 3 6 . 4 . 17 4 3 . . 11 . . 4 4 14 Classes Destroyed 24 | 2 8 . . . 2 1 2 . . . 2 2 . 1 . . 1 1 . . . 2 Worker 35 | . 26 . . . . 3 . . . . . 2 . . . . . . . 1 1 2 Builder 23 | . 15 . . . 3 1 . . . . 1 1 . 1 . . 1 . . . . . Tunneler 9 | 5 3 . . . 1 . . . . . . . . . . . . . . . . . Hauler 15 | . 2 . . . 3 3 . . . . . 2 3 1 . . 1 . . . . . Recycler 27 | 1 5 . . . . 3 . . . . 4 5 3 . . . 1 . . 4 1 . Minesweeper 1 | . . . . . . . 1 . . . . . . . . . . . . . . . Mechanic 2 | . 1 . . . . . . . . . . 1 . . . . . . . . . . Operator 5 | . 1 . . . 1 . . . . . . . . 1 . . . 1 . . 1 . Watcher 13 | . 3 . . . 1 1 . . . . 1 1 . 1 . . 1 2 . 1 . 1 Swarmer 53 | . 3 3 . . 3 . . 4 . 3 . 4 5 . . . 16 . . 6 6 . Cutter 1 | . . . . . . . . . . . . . . . . . . . . . . 1 Saboteur 4 | . . . . . . . . . . . . . . . . . . 3 . . . 1 Grunt 74 | . 11 2 . 3 . 1 4 4 . 2 8 10 2 6 . . 8 . . 1 . 12 Brawler 2 | . . . . . . . 1 . . . . 1 . . . . . . . . . . Duelist 4 | . . . . . . . . . . . 1 . . . . . . . . . . 3 Protector 3 | . . . . . . . . . . . . 2 . . . . . . . . . 1 Sentry 26 | . . . . . 2 1 . 1 . . 3 1 1 5 . 1 2 5 . 2 1 1 Specialist 3 | . . . . . . . . . . . . 3 . . . . . . . . . . Hunter 24 | . . . . . 2 1 1 1 . . . 5 . . . . 2 . . 2 5 5 Programmer 43 | . . . . . . 2 . . . . 3 5 . . . . . 10 . 6 3 14 Heavy 4 | . . . . . . . . . . . 2 1 1 . . . . . . . . . Behemoth 2 | . . . . . . . . . . . . . . 1 . . . . . . . 1 M Guard 2 | . . . . . . . . . . . . . . . . . . . . . . 2 Tracker 2 | . . . . . . . . . . . . . . . . . . . . 2 . . Combat Programmer 4 | . . . . . . . . . . . . . . . . . . . . 2 . 2 Striker 3 | . . . . . . . . . . . . . . . . . 3 . . . . . Assembled 3 | . . . . . . . . . . . . . . . . . . . . . . 3 Best Kill Streak 12 | 6 5 3 . 2 4 2 3 3 . 3 5 11 5 4 . 1 7 3 1 5 6 12 Combat Bots Only 10 | . 3 3 . 2 3 1 3 3 . 3 3 9 5 3 . 1 7 3 1 5 6 10 Max Kills in Single Turn 4 | 1 1 2 . 2 2 1 2 2 . 3 1 4 4 2 . 1 4 1 1 4 4 4 Gunslinging 1 | . . 1 . . . . . . . . . . . . . . 1 . . . . . Exploded 4 | . . . . 2 2 . 2 2 . 3 . 4 4 2 . . 4 . . 4 4 3 Melee 1 | . 1 . . . . . . . . . 1 . . . . . . . . . . . Uniques/NPCs Destroyed 2 | . . . . . . . . . . . . . . . . . . . 1 . . 1 A5 (-3/Lab) MAIN.C Shell (-1/Command) Combat | -11 -10 -10 -10 -9 -8 -7 -7 -7 -7 -6 -6 -5 -4 -4 -4 -4 -3 -3 -3 -2 -1 -1 -------- Run | Yrd Mat Min Exi Min Mat Fac Low Low Zio Pro Fac Fac Fac Ext Cet Arc Res Arm Lab Res Acc Com Hostile Shots Fired 1782 | . 95 28 . 10 25 67 13 60 . 5 112 151 48 43 44 . 254 99 10 60 104 554 Missed 512 | . 26 8 . 3 8 27 4 17 . 3 34 42 13 10 14 . 50 22 3 12 34 182 Intercepted 10 | . . . . . . . . . . . . . . . . . . . . . . 10 Hits 1270 | . 69 20 . 7 17 40 9 43 . 2 78 109 35 33 30 . 204 77 7 48 70 372 Melee 31 | . . . . . . . . . . . 2 5 . . . . 22 . . . . 2 Projectile 1239 | . 69 20 . 7 17 40 9 43 . 2 76 104 35 33 30 . 182 77 7 48 70 370 AOE 20 | . . . . . . . . . . . . . . . . . 6 . . . . 14 Critical Strikes 64 | . . . . . 1 . . . . . 5 8 1 2 5 . 12 2 . 2 3 23 Actively Blocked 31 | . . . . . . . . . . . . . . . 5 . . . . 2 3 21 Part Disruptions 5 | . . . . . . . . . . . . . . . . . . . . . 1 4 Damage Taken 30503 | . 814 241 . 183 229 376 148 415 . 40 1407 2207 909 686 595 16 4893 1746 183 1053 1609 12753 Core 2932 | . 118 60 . 60 15 25 13 28 . . 245 170 16 23 39 . 410 110 . 66 86 1448 Absorbed by Shields 461 | . . . . . . . . . . . . 175 . 107 179 . . . . . . . Reduced by Siege Mode 3598 | . . . . . . . . . . . . 19 . . 16 . 184 188 28 1 86 3076 Redirected to Shielding 104 | . . . . . . . . . . . . . . . . . . . . . . 104 Ignored by Resistances 1826 | . . . . . . . . . . . . . . . 168 7 1357 287 . . . 7 Regen/Repaired (Parts) 258 | . 16 . . . 136 . . . . . 106 . . . . . . . . . . . Core Remaining (%) 77 | 100 . . . 4 97 . . . . 90 71 83 . . . 93 . . 60 95 . . Volleys Fired 1292 | 13 244 19 . 8 48 25 15 14 . 5 43 58 31 37 16 5 82 166 41 72 70 280 Largest 3 | 2 2 2 . 2 2 3 2 2 . 2 3 3 3 3 3 3 3 3 1 1 1 3 Hottest 290 | 60 70 70 . 60 150 225 150 155 . 155 230 225 231 231 240 105 105 218 120 120 120 290 Shots Fired 2094 | 26 471 38 . 9 88 53 26 21 . 6 123 135 79 94 45 14 205 180 41 71 70 299 Gun 892 | 26 471 38 . 2 22 . . . . . . . 15 42 37 14 185 15 1 4 . 20 Cannon 1115 | . . . . . 64 53 22 14 . 2 123 119 63 47 8 . . 165 40 65 69 261 Launcher 87 | . . . . 7 2 . 4 7 . 4 . 16 1 5 . . 20 . . 2 1 18 Special . | . . . . . . . . . . . . . . . . . . . . . . . Kinetic 614 | 13 242 19 . 1 9 . . . . . . . 10 37 36 14 185 7 . 2 . 39 Thermal 1378 | 13 229 19 . 1 77 53 22 14 . 2 123 117 68 52 9 . . 173 41 67 69 229 Explosive 62 | . . . . 7 2 . 4 7 . 4 . 16 1 . . . . . . 2 1 18 Electromagnetic 40 | . . . . . . . . . . . . 2 . 5 . . 20 . . . . 13 Robot Hit Streak 62 | 5 10 5 . 10 20 9 4 8 . 2 19 35 27 12 8 3 18 20 27 62 6 23 Robot Miss Streak 7 | 4 7 3 . . 1 3 3 1 . 2 2 3 1 2 3 2 4 3 . 1 5 4 Penetration Max 1 | . . . . . . . . . . . . . . 1 1 1 1 . . . . . Secondary Targets 12 | . 2 2 . . . . . . . . . . . . . . 8 . . . . . Max Gunslinging Chain 2 | . 1 1 . . . . . . . . . . . . . . 2 . . . . . Capacitor 564 | . . . . . . . . . . . . . . . . . . 155 41 67 69 232 Shots Hit Robots 1240 | 14 233 19 . 6 38 45 11 11 . 2 88 94 62 66 27 7 131 72 12 40 32 230 Core Hits 742 | 7 97 8 . 11 20 17 10 22 . 12 42 97 30 37 10 5 89 25 2 28 25 148 Critical Kills 33 | . 2 . . . . . 1 . . . 1 1 . . . 1 11 4 1 7 2 2 Critical Parts Destroyed 26 | . 5 . . . . . . . . . . . . . 1 1 19 . . . . . Critical Strikes 69 | . 8 . . . 1 1 1 . . . 1 1 . 2 3 3 32 4 1 7 2 2 Burn 4 | . 1 . . . 1 . . . . . . . . 2 . . . . . . . . Meltdown 19 | . . . . . . . 1 . . . 1 1 . . . . . 4 1 7 2 2 Destroy 42 | . 4 . . . . . . . . . . . . . 3 3 32 . . . . . Smash 3 | . 3 . . . . . . . . . . . . . . . . . . . . . Impale 1 | . . . . . . 1 . . . . . . . . . . . . . . . . Melee Attacks 125 | . 55 . . . 1 15 4 . 1 . 35 7 5 2 . . . . . . . . Impact 55 | . 55 . . . . . . . . . . . . . . . . . . . . . Slashing . | . . . . . . . . . . . . . . . . . . . . . . . Piercing 70 | . . . . . 1 15 4 . 1 . 35 7 5 2 . . . . . . . . Sneak Attacks 19 | . 8 . . . . 8 1 . . . . 1 1 . . . . . . . . . Combat Hostiles 1 | . 1 . . . . . . . . . . . . . . . . . . . . . Follow-up Attacks . | . . . . . . . . . . . . . . . . . . . . . . . Damage Inflicted 52405 | 173 2920 193 . 720 926 1414 648 938 . 603 2414 6027 2078 2226 1135 260 5609 3224 391 3433 2184 14889 Guns 9657 | 173 2260 193 . 17 144 . . . . . . . 243 821 960 260 3685 172 . 29 . 700 Cannons 26132 | . . . . . 625 917 225 200 . 25 2237 2084 1412 1024 175 . . 3052 391 2773 1617 9375 Explosions 14883 | . . . . 703 120 . 360 738 . 578 . 3841 309 377 . . 1924 . . 554 567 4812 Melee 1524 | . 658 . . . . 497 63 . . . 135 102 69 . . . . . . . . . Ramming 209 | . 2 . . . 37 . . . . . 42 . 45 4 . . . . . 77 . 2 Kinetic 8925 | 106 1076 67 . 6 64 . . . . . . . 312 913 960 260 3685 51 . . . 1425 Thermal 26751 | 67 1184 126 . 11 705 917 225 200 . 25 2237 2071 1343 932 175 . 121 3173 391 2802 1617 8429 Explosive 12293 | . . . . 703 120 . 360 738 . 578 . 3273 309 . . . 279 . . 554 567 4812 Electromagnetic 2703 | . . . . . . . . . . . . 581 . 377 . . 1524 . . . . 221 Impact 658 | . 658 . . . . . . . . . . . . . . . . . . . . . Slashing . | . . . . . . . . . . . . . . . . . . . . . . . Piercing 866 | . . . . . . 497 63 . . . 135 102 69 . . . . . . . . . Highest Corruption 32 | . . . . . . 1 1 1 3 . 4 29 2 4 32 32 3 12 15 1 3 29 Average Corruption 6 | . . . . . . 1 1 1 1 . 2 9 2 2 26 32 3 6 12 1 2 12 Corruption Purged 2 | . . . . . . . . . . . . . . . . . . . . 2 . . Corruption Blocked . | . . . . . . . . . . . . . . . . . . . . . . . Effects 333 | . . . . . . 4 8 8 3 . 19 37 6 26 26 11 5 59 21 2 9 89 Message Errors 82 | . . . . . . . 3 1 . . 5 7 1 8 8 2 2 20 2 . 4 19 Matter Fused 77 | . . . . . . . 2 3 1 . 4 6 4 5 9 3 . 14 3 . 2 21 Heat Flow Errors 35 | . . . . . . 1 . 1 . . 2 4 1 1 2 2 1 5 3 1 1 10 Energy Discharges 32 | . . . . . . . 1 1 . . . 4 . 3 2 1 1 4 4 1 . 10 Parts Rejected 4 | . . . . . . 1 . . . . . . . . . 1 . 1 . . . 1 Parts Fused 3 | . . . . . . 1 . . . . . 1 . . . . . 1 . . . . Data Loss (minor) 31 | . . . . . . . 1 2 2 . 1 5 . 5 3 . . 2 1 . 1 8 Data Loss (major) 18 | . . . . . . 1 1 . . . 3 1 . 1 1 . . 4 3 . . 3 Misfires 16 | . . . . . . . . . . . 2 2 . 2 . . . 3 2 . . 5 Alerts 7 | . . . . . . . . . . . 1 2 . . . 1 . 1 1 . 1 . Misdirections 2 | . . . . . . . . . . . . . . . . . . . . . . 2 Weapon Failures 26 | . . . . . . . . . . . 1 5 . 1 1 1 1 4 2 . . 10 Overload Shots 1 | . . . . . . . . . . . . . . . 1 . . . . . . . Overflow Damage 1363 | . 210 . . . . 128 21 . . 10 63 38 34 18 . . 18 190 . 168 124 341 Projectiles 681 | . . . . . . 7 21 . . . 48 . 34 18 . . . 190 . 101 49 213 Explosions 335 | . . . . . . . . . . 10 . 38 . . . . 18 . . 66 75 128 Melee 347 | . 210 . . . . 121 . . . . 15 . . . . . . . . 1 . . Knockbacks 10 | . 3 . . . 1 . . . . . 2 . 1 . . . . . . 2 . 1 Impact 9 | . 3 . . . 1 . . . . . 2 . 1 . . . . . . 2 . . Kinetic 1 | . . . . . . . . . . . . . . . . . . . . . . 1 Secondary . | . . . . . . . . . . . . . . . . . . . . . . . Self-Inflicted Damage 684 | . . . . 98 . . . . . . 18 134 . . . . 127 . . 4 . 303 Shots 23 | . . . . 4 . . . . . . . 3 . . . . 10 . . 1 . 5 Rammed 20 | . 1 . . . 5 . . . . . 6 . 3 1 . . . . . 3 . 1 Targets Rammed 21 | . 1 . . . 6 . . . . . 6 . 3 1 . . . . . 3 . 1 Kicked . | . . . . . . . . . . . . . . . . . . . . . . . Crushed 1 | . . . . . 1 . . . . . . . . . . . . . . . . . Highest Temperature 398 | . 123 130 . 20 99 229 141 155 . 18 303 365 180 199 222 93 121 398 230 253 224 224 Average Temperature 59 | . 27 58 . 6 28 54 54 37 . 12 78 71 44 31 93 57 27 112 85 79 72 72 Received Heat Transfer 2374 | . 345 48 . 48 63 63 45 93 . 18 291 247 21 181 106 . 337 171 . 45 9 243 Effects 4 | . . . . . . . . . . . . . . . . . . 4 . . . . Interference 3 | . . . . . . . . . . . . . . . . . . 3 . . . . Short Circuit 1 | . . . . . . . . . . . . . . . . . . 1 . . . . Siege Activations 30 | . . . . . . . . . . . . 1 1 2 1 . 3 7 1 2 3 9 Total Turns 539 | . . . . . . . . . . . . 6 11 6 14 . 117 89 13 10 30 243 Longest Duration 122 | . . . . . . . . . . . . 6 11 3 14 . 60 28 13 7 20 122 Martial Activations . | . . . . . . . . . . . . . . . . . . . . . . . Shielding Activations . | . . . . . . . . . . . . . . . . . . . . . . . Robots Disrupted . | . . . . . . . . . . . . . . . . . . . . . . . Combat Hostiles . | . . . . . . . . . . . . . . . . . . . . . . . Robots Corrupted 9 | . 3 . . . . . . . . . 1 1 . 1 . . . . . 1 . 2 Combat Hostiles 2 | . . . . . . . . . . . . . . . . . . . . . . 2 Parts Fried 27 | . 5 . . . . . . . . . 2 2 . 6 . . 8 . . 4 . . Impact Corruptions 13 | . 11 . . . . . . . . . 1 . . . . . . . . 1 . . Robots Melted 20 | . . . . . . . 1 . . . 2 1 . . . . . 4 1 7 2 2 Combat Hostiles 14 | . . . . . . . 1 . . . 1 . . . . . . 3 1 5 1 2 Parts Melted 79 | . . 2 . . 2 3 1 . . . 15 9 5 4 . . . 18 3 10 6 1 Heat Transferred 27029 | 150 2832 370 . 25 1197 1295 333 322 . 50 3325 2905 1998 1517 241 . 50 2553 314 2146 1369 4037 Parts Sabotaged 4 | . . . . . . . . . . . . 4 . . . . . . . . . . Parts Stolen . | . . . . . . . . . . . . . . . . . . . . . . . Parts Stripped . | . . . . . . . . . . . . . . . . . . . . . . . Power Chain Reactions 3 | . . . . . . . . . . . . . . 1 . . 2 . . . . . Latent Energy Used 207 | . . . . . . . . . . . . 207 . . . . . . . . . . LE Corruption 4 | . . . . . . . . . . . . 4 . . . . . . . . . . Alert | -11 -10 -10 -10 -9 -8 -7 -7 -7 -7 -6 -6 -5 -4 -4 -4 -4 -3 -3 -3 -2 -1 -1 ------- Run | Yrd Mat Min Exi Min Mat Fac Low Low Zio Pro Fac Fac Fac Ext Cet Arc Res Arm Lab Res Acc Com Maximum Alert Level 5 | . . . . . . . . . . . . 3 1 1 . 1 2 1 . 1 1 5 Low Security (%) 68 | 100 100 100 . 100 100 100 . . . . 100 60 33 93 100 66 8 23 . 54 51 14 Level 1 19 | . . . . . . . . . . . . 9 66 6 . 33 53 76 . 45 48 4 Level 2 5 | . . . . . . . . . . . . 29 . . . . 38 . . . . 12 Level 3 . | . . . . . . . . . . . . . . . . . . . . . . 9 Level 4 2 | . . . . . . . . . . . . . . . . . . . . . . 24 Level 5 2 | . . . . . . . . . . . . . . . . . . . . . . 34 High Security . | . . . . . . . . . . . . . . . . . . . . . . . Max Security . | . . . . . . . . . . . . . . . . . . . . . . . Peak Influence 1920 | 20 179 70 . 95 113 44 . . . . 135 701 338 228 126 227 545 361 . 310 381 1920 Initial 338 | . . 67 . . 25 37 . . . . . 61 338 104 32 34 62 255 . . 175 147 Average 198 | 5 52 11 . 62 20 12 . . . . 48 223 215 107 46 172 348 232 . 144 205 1065 Influence Increases 11910 | 30 765 135 46 226 430 280 145 245 . 162 569 1062 297 792 321 213 1141 754 . 655 528 3114 Destroy 0b10 Robot/C 6340 | . 280 100 40 140 140 100 120 200 . 120 340 600 180 460 140 80 700 380 . 420 300 1500 Destroy 0b10 Robot/NC 740 | 30 280 . . . 45 55 5 . . . 30 70 30 35 10 . 25 20 . 30 15 60 Destroy Leader 1224 | . 60 20 . 30 58 48 20 30 . 20 102 116 36 44 . . 104 94 . 112 60 270 Allied During Kill 1213 | . . . 6 24 4 . . . . 22 . . . 187 114 80 82 47 . . . 647 Successful Hack 248 | . 46 . . . 20 59 . . . . 8 . . . . . 37 14 . . 21 43 Select Force Hacks 90 | . 30 . . . 60 . . . . . . . . . . . . . . . . . Disable Machine 375 | . 15 . . . 15 15 . . . . 15 30 15 . 15 45 45 105 . 15 15 30 Destroy Structure 1350 | . 24 . . 32 43 3 . . . . 29 216 36 66 42 8 58 94 . 78 117 504 Lose Combat Pursuer 330 | . 30 15 . . 45 . . 15 . . 45 30 . . . . 90 . . . . 60 Influence Decreases 10157 | 30 590 310 40 166 412 356 143 234 21 162 443 498 774 947 293 132 821 1185 56 363 589 1592 Entered New Map 1427 | . . 108 . 6 41 47 4 2 21 . . 65 352 109 26 52 105 232 56 . 117 84 Time Decay 6596 | 30 570 192 40 140 267 309 139 232 . 152 393 373 392 538 207 80 546 583 . 363 452 598 Lost Part 520 | . 20 10 . . . . . . . 10 50 60 30 . . . 50 10 . . 10 270 Lost Ally 1210 | . . . . 20 . . . . . . . . . 300 60 . 120 60 . . 10 640 Purge Threat 404 | . . . . . 104 . . . . . . . . . . . . 300 . . . . Squads Dispatched 70 | . 1 . . 1 7 4 . . . . 10 9 1 1 . . 7 5 . 7 3 14 Investigation 8 | . 1 . . 1 2 . . . . . 1 . . . . . 2 . . 1 . . Extermination 26 | . . . . . . 3 . . . . 4 2 1 . . . . 3 . 5 3 5 Reinforcement 24 | . . . . . 5 1 . . . . 5 4 . 1 . . 2 2 . . . 4 Assault 8 | . . . . . . . . . . . . 3 . . . . . . . . . 5 Garrison 3 | . . . . . . . . . . . . . . . . . 3 . . . . . Intercept 1 | . . . . . . . . . . . . . . . . . . . . 1 . . Searches Triggered . | . . . . . . . . . . . . . . . . . . . . . . . Unchained Authorized 1 | . . . . . . . . . . . . . . . . . . . . . 1 . Construction Impeded 4 | . . . . . 1 . . . . . . 1 . 1 . . 1 . . . . . Haulers Reinforced . | . . . . . . . . . . . . . . . . . . . . . . . Active Scanning Responses . | . . . . . . . . . . . . . . . . . . . . . . . Cargo Convoy Interrupts 1 | . . . . . . . . . . . . 1 . . . . . . . . . . Stealth | -11 -10 -10 -10 -9 -8 -7 -7 -7 -7 -6 -6 -5 -4 -4 -4 -4 -3 -3 -3 -2 -1 -1 --------- Run | Yrd Mat Min Exi Min Mat Fac Low Low Zio Pro Fac Fac Fac Ext Cet Arc Res Arm Lab Res Acc Com Distress Signals 30 | . 2 . . . 3 . . . . . 2 4 2 1 2 . 7 1 . . 1 5 Communications Jammed 80 | . . . . . . . . . . . . . 6 11 . . 1 41 . 3 12 6 Distress Signals 68 | . . . . . . . . . . . . . . 11 . . . 41 . 3 12 1 Times Spotted 428 | . 24 6 . 7 13 11 5 10 . 6 28 48 13 23 11 6 56 26 1 22 18 94 Peak Tracking Total 46 | . 4 2 . 3 3 3 3 4 . 3 4 13 7 4 5 1 8 2 1 5 5 46 Tactical Retreats 15 | . 2 1 . . 1 . . 1 . . 3 1 . . . . 4 . . . 1 1 ECM-based Alert Blocks 1 | . . . . . . . . . . . . . . . . . . . . . 1 . Traps | -11 -10 -10 -10 -9 -8 -7 -7 -7 -7 -6 -6 -5 -4 -4 -4 -4 -3 -3 -3 -2 -1 -1 ------- Run | Yrd Mat Min Exi Min Mat Fac Low Low Zio Pro Fac Fac Fac Ext Cet Arc Res Arm Lab Res Acc Com Traps Triggered 16 | . 1 . . . . . . . . . 4 . 1 4 . . 2 2 . 2 . . Indirectly 3 | . . . . . . . . . . . . . . 2 . . 1 . . . . . Trap Hack Attempts 67 | . . . . . . 67 . . . . . . . . . . . . . . . . Triggered . | . . . . . . . . . . . . . . . . . . . . . . . Disarmed 5 | . . . . . . . . . . . . . . . . . . . . . . 5 Reprogrammed 7 | . . . . . . 7 . . . . . . . . . . . . . . . . Reused . | . . . . . . . . . . . . . . . . . . . . . . . Traps Extracted 6 | . . . . . . 6 . . . . . . . . . . . . . . . . Installed . | . . . . . . . . . . . . . . . . . . . . . . . Triggered . | . . . . . . . . . . . . . . . . . . . . . . . Most Traps Carried 6 | . . . . . . 6 6 2 2 2 2 2 2 2 . . . . . . . . Machines | -11 -10 -10 -10 -9 -8 -7 -7 -7 -7 -6 -6 -5 -4 -4 -4 -4 -3 -3 -3 -2 -1 -1 ---------- Run | Yrd Mat Min Exi Min Mat Fac Low Low Zio Pro Fac Fac Fac Ext Cet Arc Res Arm Lab Res Acc Com Machines Disabled 32 | . 1 . . . 1 1 . . . . 1 2 1 2 1 3 3 7 5 1 1 2 Max in Single Turn 2 | . 1 . . . 1 1 . . . . 1 2 1 1 1 1 2 1 1 1 1 1 Garrison Access 3 | . . . . . 1 1 . . . . . . . . . . 1 . . . . . Machines Repaired . | . . . . . . . . . . . . . . . . . . . . . . . Machines Dismantled . | . . . . . . . . . . . . . . . . . . . . . . . Machines Sabotaged . | . . . . . . . . . . . . . . . . . . . . . . . Overloaded Fab Kills . | . . . . . . . . . . . . . . . . . . . . . . . Hacking | -11 -10 -10 -10 -9 -8 -7 -7 -7 -7 -6 -6 -5 -4 -4 -4 -4 -3 -3 -3 -2 -1 -1 --------- Run | Yrd Mat Min Exi Min Mat Fac Low Low Zio Pro Fac Fac Fac Ext Cet Arc Res Arm Lab Res Acc Com Machines Accessed 69 | . 7 1 3 2 12 10 2 . . . 5 1 . . . . 4 6 1 6 5 4 Terminals 41 | . 5 . . 1 6 8 . . . . 2 . . . . . 1 5 . 4 5 4 Fabricators 2 | . . . . . . . . . . . 1 . . . . . 1 . . . . . Repair Stations 6 | . 1 . . . 1 . . . . . 2 . . . . . . 1 . 1 . . Recycling Units 3 | . 1 . . . 2 . . . . . . . . . . . . . . . . . Scanalyzers 5 | . . . . . 2 1 . . . . . . . . . . 2 . . . . . Garrison Access 4 | . . . . . 1 1 . . . . . 1 . . . . . . . 1 . . Total Hacks 176 | . 21 1 3 3 31 24 6 . . . 14 2 . . . . 10 13 3 19 14 12 Successful 92 | . 11 1 3 2 22 12 6 . . . 8 . . . . . 4 5 3 3 5 7 Failed 83 | . 10 . . 1 8 12 . . . . 6 2 . . . . 6 8 . 16 9 5 Catastrophic 17 | . 2 . . . 1 1 . . . . 1 . . . . . 1 4 . 5 2 . Database Lockouts 1 | . . . . . 1 . . . . . . . . . . . . . . . . . Manual 83 | . 19 . 1 2 13 9 . . 4 . 3 . . . 1 . 6 5 . 7 8 5 Terminals 114 | . 18 . . 2 16 21 . . . . 3 . . . . . 5 10 . 13 14 12 Fabricators 5 | . . . . . . . . . . . 3 . . . . . 2 . . . . . Repair Stations 20 | . 2 . . . 4 . . . . . 8 . . . . . . 3 . 3 . . Recycling Units 3 | . 1 . . . 2 . . . . . . . . . . . . . . . . . Scanalyzers 10 | . . . . . 5 2 . . . . . . . . . . 3 . . . . . Garrison Access 10 | . . . . . 4 1 . . . . . 2 . . . . . . . 3 . . Terminal Hacks 41 | . . 1 3 2 2 8 6 . . . . . . . . . 2 4 3 2 3 5 Record 10 | . . . 2 . . . 5 . . . . . . . . . . . 3 . . . Part Schematic 1 | . . . . . . 1 . . . . . . . . . . . . . . . . Prototype ID Bank 5 | . . . . 1 . 1 . . . . . . . . . . 1 1 . 1 . . Open Door 7 | . . 1 . 1 . . 1 . . . . . . . . . . . . . 3 1 Level Access Points 1 | . . . . . . . . . . . . . . . . . . . . 1 . . Branch Access Points 2 | . . . . . . 1 . . . . . . . . . . 1 . . . . . Machine Index 1 | . . . . . . . . . . . . . . . . . . . . . . 1 Alert Level 2 | . . . . . 1 . . . . . . . . . . . . 1 . . . . Unreport Threat 3 | . . . . . 1 . . . . . . . . . . . . 2 . . . . Locate Traps 2 | . . . . . . 1 . . . . . . . . . . . . . . . 1 Disarm Traps 1 | . . . . . . . . . . . . . . . . . . . . . . 1 Reprogram Traps 1 | . . . . . . 1 . . . . . . . . . . . . . . . . Transport Status 2 | . . . . . . 2 . . . . . . . . . . . . . . . . Registered Components 1 | . . . . . . 1 . . . . . . . . . . . . . . . . Proto ID Catalog 1 | . . . 1 . . . . . . . . . . . . . . . . . . . Disengage Seal 1 | . . . . . . . . . . . . . . . . . . . . . . 1 Fabricator Hacks 1 | . . . . . . . . . . . 1 . . . . . . . . . . . Load Schematic 1 | . . . . . . . . . . . 1 . . . . . . . . . . . Repair Station Hacks 12 | . 2 . . . 4 . . . . . 6 . . . . . . . . . . . Scan Component 6 | . 1 . . . 2 . . . . . 3 . . . . . . . . . . . Repair 6 | . 1 . . . 2 . . . . . 3 . . . . . . . . . . . Recycling Unit Hacks . | . . . . . . . . . . . . . . . . . . . . . . . Scanalyzer 5 | . . . . . 4 1 . . . . . . . . . . . . . . . . Insert Component 2 | . . . . . 2 . . . . . . . . . . . . . . . . . Analyze 1 | . . . . . 1 . . . . . . . . . . . . . . . . . Retrieve Study 2 | . . . . . 1 1 . . . . . . . . . . . . . . . . Garrison Access Hacks 2 | . . . . . 1 1 . . . . . . . . . . . . . . . . Seal Access 2 | . . . . . 1 1 . . . . . . . . . . . . . . . . Unauthorized Hacks 31 | . 9 . . . 11 2 . . . . 1 . . . . . 2 1 . 1 2 2 Terminals 27 | . 8 . . . 9 2 . . . . 1 . . . . . 1 1 . 1 2 2 Assimilate 2 | . . . . . . . . . . . 1 . . . . . . . . . 1 . Botnet 13 | . 2 . . . 3 2 . . . . . . . . . . 1 1 . 1 1 2 Operators 2 | . 1 . . . 1 . . . . . . . . . . . . . . . . . Skim 10 | . 5 . . . 5 . . . . . . . . . . . . . . . . . Fabricators 1 | . . . . . . . . . . . . . . . . . 1 . . . . . Liberate 1 | . . . . . . . . . . . . . . . . . 1 . . . . . Repair Stations . | . . . . . . . . . . . . . . . . . . . . . . . Recycling Units 3 | . 1 . . . 2 . . . . . . . . . . . . . . . . . Tunnel 3 | . 1 . . . 2 . . . . . . . . . . . . . . . . . Scanalyzers . | . . . . . . . . . . . . . . . . . . . . . . . Garrison Access . | . . . . . . . . . . . . . . . . . . . . . . . Data Cores Recovered . | . . . . . . . . . . . . . . . . . . . . . . . Used . | . . . . . . . . . . . . . . . . . . . . . . . Hacking Detections 47 | . 5 . . 1 8 9 . . . . 3 1 . . . . 4 6 . 6 2 2 Full Trace Events 1 | . . . . . . . . . . . . . . . . . . . . 1 . . Feedback Events . | . . . . . . . . . . . . . . . . . . . . . . . Feedback Blocked . | . . . . . . . . . . . . . . . . . . . . . . . Robot Schematics Acquired 2 | . . . . . . . . . 2 . . . . . . . . . . . . . Robots Built . | . . . . . . . . . . . . . . . . . . . . . . . Authchips . | . . . . . . . . . . . . . . . . . . . . . . . Time . | . . . . . . . . . . . . . . . . . . . . . . . Total Robot Build Rating . | . . . . . . . . . . . . . . . . . . . . . . . Part Schematics Acquired 18 | . . . . . 1 1 . . 16 . . . . . . . . . . . . . Parts Built . | . . . . . . . . . . . . . . . . . . . . . . . Authchips . | . . . . . . . . . . . . . . . . . . . . . . . Time . | . . . . . . . . . . . . . . . . . . . . . . . Total Part Build Rating . | . . . . . . . . . . . . . . . . . . . . . . . Part Studies Acquired 2 | . . . . . 1 1 . . . . . . . . . . . . . . . . Parts Repaired 5 | . 1 . . . 2 . . . . . 2 . . . . . . . . . . . Time 213 | . 26 . . . 58 . . . . . 129 . . . . . . . . . . . Parts Recycled . | . . . . . . . . . . . . . . . . . . . . . . . Recycled Matter . | . . . . . . . . . . . . . . . . . . . . . . . Retrieved Matter . | . . . . . . . . . . . . . . . . . . . . . . . Retrieved Components . | . . . . . . . . . . . . . . . . . . . . . . . Parts Scanalyzed 1 | . . . . . 1 . . . . . . . . . . . . . . . . . Part Schematics Acquired 1 | . . . . . 1 . . . . . . . . . . . . . . . . . Parts Damaged . | . . . . . . . . . . . . . . . . . . . . . . . Bothacking | -11 -10 -10 -10 -9 -8 -7 -7 -7 -7 -6 -6 -5 -4 -4 -4 -4 -3 -3 -3 -2 -1 -1 ------------ Run | Yrd Mat Min Exi Min Mat Fac Low Low Zio Pro Fac Fac Fac Ext Cet Arc Res Arm Lab Res Acc Com Used RIF Installer . | . . . . . . . . . . . . . . . . . . . . . . . Robots Hacked . | . . . . . . . . . . . . . . . . . . . . . . . Non-combat . | . . . . . . . . . . . . . . . . . . . . . . . Combat . | . . . . . . . . . . . . . . . . . . . . . . . Robot Hacks Applied . | . . . . . . . . . . . . . . . . . . . . . . . Relay Couplers Released 4 | . . . . . . . . . . . . 3 . . . . 1 . . . . . Machine Destruction 1 | . . . . . . . . . . . . . . . . . 1 . . . . . Programmers 3 | . . . . . . . . . . . . 3 . . . . . . . . . . Fabnet Peak Effective % . | . . . . . . . . . . . . . . . . . . . . . . . Robots Rewired 21 | . . . . . . . . . . . . . . 18 . . . 3 . . . . Allies Hacked . | . . . . . . . . . . . . . . . . . . . . . . . Hacks Repelled . | . . . . . . . . . . . . . . . . . . . . . . . Allies | -11 -10 -10 -10 -9 -8 -7 -7 -7 -7 -6 -6 -5 -4 -4 -4 -4 -3 -3 -3 -2 -1 -1 -------- Run | Yrd Mat Min Exi Min Mat Fac Low Low Zio Pro Fac Fac Fac Ext Cet Arc Res Arm Lab Res Acc Com Total Allies 78 | . . 6 . . . . . . 2 . . . . 25 5 . . 3 . . 1 36 Largest Group 22 | . . 5 4 3 2 . . . 2 2 . . . 8 9 6 6 3 . . 1 22 Highest-Rated Group 745 | . . 92 61 40 32 . . . 64 64 . . . 439 735 450 450 126 . . 45 745 Highest-Rated Ally 234 | . . 31 21 16 16 . . . 39 39 . . . 159 159 96 96 42 . . 45 234 Total Orders 15 | . . . . . . . . . . . . 2 4 8 1 . . . . . . . RETURN 15 | . . . . . . . . . . . . 2 4 8 1 . . . . . . . Ally Attacks 476 | . . . 2 20 11 . . . . 13 . . . 83 71 16 23 7 . . . 230 Total Damage 15798 | . . . 33 203 127 . . . . 184 . . . 3196 2357 523 784 207 . . . 8184 Kills 84 | . . . 2 4 . . . . . 1 . . . 16 11 3 5 2 . . . 40 Allies Corrupted 4 | . . . . . . . . . . . . . . . . . . . . . . 4 Allies Melted . | . . . . . . . . . . . . . . . . . . . . . . . Intel | -11 -10 -10 -10 -9 -8 -7 -7 -7 -7 -6 -6 -5 -4 -4 -4 -4 -3 -3 -3 -2 -1 -1 ------- Run | Yrd Mat Min Exi Min Mat Fac Low Low Zio Pro Fac Fac Fac Ext Cet Arc Res Arm Lab Res Acc Com Active Infowar (turns) 29414 | 9 3327 1433 766 286 1627 1592 1142 645 2066 985 1829 1608 936 1524 625 173 1572 1812 877 1570 1133 1877 Optics 11545 | . . . . . . . . . 18 . . . 933 1524 625 173 1572 1812 877 1570 1133 1308 Sensors 4754 | . . . . . . . 1110 645 2008 985 6 . . . . . . . . . . . Terrain 2388 | . 70 1433 766 104 . . . . . . . . . . . . . 15 . . . . Seismic 3266 | 9 3257 . . . . . . . . . . . . . . . . . . . . . T.N.C. 8518 | . . . . . . . . . . . 1826 1608 936 1524 625 173 1572 254 . . . . Machine Analysis 12144 | . . . . 182 1627 1592 1142 645 2066 985 1829 1608 468 . . . . . . . . . Triangulation 1161 | . . . . . . . . . . . . . . . . . . . . . 868 293 Jamming 11168 | . . . . . . . . . . . 185 9 905 1354 1 . 1569 1799 875 1562 1133 1776 ECM 14 | . . . . . . . . . . . . . . . . . . . . . 14 . Robot Analysis Total . | . . . . . . . . . . . . . . . . . . . . . . . Derelict Logs Recovered 5 | . . 2 . 1 . . . 1 1 . . . . . . . . . . . . . Drone Launches 16 | . . . . . . . . . . . . 2 4 8 1 . 1 . . . . . Drone Recoveries 15 | . . . . . . . . . . . . 2 4 8 1 . . . . . . . Exploration | -11 -10 -10 -10 -9 -8 -7 -7 -7 -7 -6 -6 -5 -4 -4 -4 -4 -3 -3 -3 -2 -1 -1 ------------- Run | Yrd Mat Min Exi Min Mat Fac Low Low Zio Pro Fac Fac Fac Ext Cet Arc Res Arm Lab Res Acc Com Turns Passed 29712 | 120 3376 1433 766 286 1627 1592 1142 645 2066 985 1829 1608 936 1524 625 173 1572 1812 877 1570 1133 2015 Spaces Moved 13646 | 46 938 564 323 152 828 806 649 342 1241 431 1019 866 431 657 238 88 737 794 428 829 405 834 Core 41 | 10 . . . . . . . . . . . . . . . . . . . . . 31 Treads 11879 | 36 938 564 323 152 828 806 649 342 1241 431 31 128 431 657 238 88 737 794 428 829 405 803 Legs . | . . . . . . . . . . . . . . . . . . . . . . . Wheels 1726 | . . . . . . . . . . . 988 738 . . . . . . . . . . Hover . | . . . . . . . . . . . . . . . . . . . . . . . Flight . | . . . . . . . . . . . . . . . . . . . . . . . Fastest Speed 50 | 50 160 160 160 160 160 162 162 162 162 163 130 130 160 160 160 160 158 156 157 148 148 50 Average Speed 165 | 136 193 239 232 164 160 162 162 162 162 222 132 141 160 161 160 160 161 160 159 155 148 155 Slowest Speed 250 | 160 240 240 240 240 162 162 162 162 163 243 246 240 160 164 164 160 165 165 161 161 148 250 Overloaded Moves . | . . . . . . . . . . . . . . . . . . . . . . . Propulsion Burnouts . | . . . . . . . . . . . . . . . . . . . . . . . Robots Hopped . | . . . . . . . . . . . . . . . . . . . . . . . Potential Cave-ins 18 | . . . . . 4 . . . . . . . . . . . . 10 . . 4 . Cave-ins Triggered . | . . . . . . . . . . . . . . . . . . . . . . . Exploration Rate (%) 52 | 4 82 98 68 40 58 28 69 54 85 66 22 20 12 88 76 94 33 50 99 23 12 22 Regions Visited 22 Branch Regions 13 Pre-discovered Areas 14 | . 1 . 1 . 7 . 1 1 3 . . . . . . . . . . . . . Known Exits Taken 11 | . 1 . . . 1 1 . . . 1 1 1 1 1 . 1 1 . . 1 . . Unknown Exits Taken 11 | 1 . 1 1 1 . . 1 1 1 . . . . . 1 . . 1 1 . 1 . Scrap Searched 12 | . . 1 . . . . 2 1 5 3 . . . . . . . . . . . . Spaces Dug 251 | . 23 . . 14 27 3 2 11 . 15 21 13 4 1 . . 17 20 . 5 42 33 Terrain Destroyed 854 | . 23 . . 49 52 3 22 61 . 48 21 109 16 15 5 3 29 92 4 28 63 211 Melee 58 | . 23 . . . . 3 2 . . . 21 4 4 1 . . . . . . . . Projectile 220 | . . . . . 37 . . . . . . 3 2 3 5 3 5 92 4 8 29 29 AOE 575 | . . . . 49 15 . 20 61 . 48 . 102 10 11 . . 23 . . 20 34 182 Terrain Rammed . | . . . . . . . . . . . . . . . . . . . . . . . Walls Destroyed . | . . . . . . . . . . . . . . . . . . . . . . . Machines Disabled . | . . . . . . . . . . . . . . . . . . . . . . . Actions | -11 -10 -10 -10 -9 -8 -7 -7 -7 -7 -6 -6 -5 -4 -4 -4 -4 -3 -3 -3 -2 -1 -1 --------- Run | Yrd Mat Min Exi Min Mat Fac Low Low Zio Pro Fac Fac Fac Ext Cet Arc Res Arm Lab Res Acc Com Total 19166 | 78 1965 612 339 179 1037 1016 704 408 1287 451 1331 1126 600 1034 452 110 958 1324 623 1111 937 1484 Wait 2732 | 1 663 18 . 9 101 71 32 44 10 9 177 69 83 133 133 10 28 244 105 121 435 236 Move 13625 | 45 937 563 322 151 827 805 648 341 1240 430 1018 865 430 656 237 87 736 793 427 829 404 834 Hop . | . . . . . . . . . . . . . . . . . . . . . . . Pick Up 206 | 10 22 5 6 3 14 5 . . 4 1 12 21 8 6 11 . 16 12 9 17 6 18 Fast Attach 191 | . 1 1 . . 4 4 . . 13 . 5 29 8 4 10 1 20 25 15 21 3 27 Attach 83 | 8 2 . . . 4 1 . . 1 1 7 8 4 2 1 . 9 2 3 4 4 22 Detach 31 | . . . . . . . . . 5 . 2 4 3 . 1 . 3 4 1 1 2 5 Swap 270 | . 28 2 4 5 13 14 5 8 . 5 16 24 15 30 16 4 28 11 2 9 7 24 Drop 344 | 1 12 4 7 3 19 9 . 1 13 . 10 41 10 11 27 3 36 39 20 35 6 37 Fire 1292 | 13 244 19 . 8 48 25 15 14 . 5 43 58 31 37 16 5 82 166 41 72 70 280 Melee 125 | . 55 . . . 1 15 4 . 1 . 35 7 5 2 . . . . . . . . Ram 5 | . . . . . . . . . . . 5 . . . . . . . . . . . Kick . | . . . . . . . . . . . . . . . . . . . . . . . Crush 15 | . 1 . . . 6 . . . . . 1 . 3 1 . . . . . 2 . 1 Escape Stasis . | . . . . . . . . . . . . . . . . . . . . . . . Rewire 180 | . . . . . . . . . . . . . . 152 . . . 28 . . . . Trap 67 | . . . . . . 67 . . . . . . . . . . . . . . . . Miscellaneous . | . . . . . . . . . . . . . . . . . . . . . . . Route ------- -11/Scrapyard -10/Materials (discovered 6 exits: *Mat x3 / *Min x2 / Sub) -10/Mines (discovered 4 exits: *Mat x2 / *Exi / Sub) -10/Exiles -9/Mines -8/Materials (discovered 3 exits: *Fac x3) -7/Factory (discovered 6 exits: *Fac x2 / *Sto x2 / *Low x2) -7/Lower Caves -7/Lower Caves (discovered 2 exits: *Fac / *Zio) -7/Zion (discovered 2 exits: [*Dee] / [*Pro]) -6/Proximity Caves -6/Factory (discovered 2 exits: *Fac x2) -5/Factory (discovered 3 exits: *Fac / Upp x2) -4/Factory (discovered 4 exits: *Upp x2 / *Ext x2) -4/Extension (discovered 3 exits: *Res x2 / *Cet) -4/Cetus (discovered 2 exits: *Res / [*Arc]) -4/Archives (discovered 3 exits: *Res / [*Hub x2]) -3/Research (discovered 3 exits: *Arm / Qua x2) -3/Armory -3/Lab -2/Research (discovered 4 exits: *Acc x3 / *Tes) -1/Access -1/Command History --------- Turn | Location | Event 1 | -11/Scrapyard | Found Blink Core 2 | -11/Scrapyard | Met Revision 17 8 | -11/Scrapyard | Discovered new exit (range 16) 121 | -11/Scrapyard | Entered Materials 302 | -10/Materials | Build established: Mutant 629 | -10/Materials | Discovered new exit (range 15) 979 | -10/Materials | Identified exit to Subcaves 979 | -10/Materials | Identified exit to Materials 1046 | -10/Materials | Discovered new exit (range 8) 1058 | -10/Materials | Identified exit to Mines 1126 | -10/Materials | Learned Storage security intel 1267 | -10/Materials | Loaded intel: 2 recycling unit locations 1303 | -10/Materials | Repaired Seismic Detector 1311 | -10/Materials | Learned Storage terminal intel 3497 | -10/Materials | Entered Mines 3522 | -10/Mines | Discovered exit to Subcaves (range 5) 3924 | -10/Mines | Core integrity fell below 50% 3974 | -10/Mines | Deemed a non-threat by the Exiles lab entrance 3974 | -10/Mines | Discovered new exit (range 5) 4066 | -10/Mines | Discovered exit to Materials (range 6) 4169 | -10/Mines | Learned location of 1 exit from Materials 4285 | -10/Mines | Met a Derelict who couldn't figure out how to use a Trap Extractor 4414 | -10/Mines | Assisted by bots powering up and referring to "LRC-V3" 4455 | -10/Mines | Received a Mining Laser from a helpful Derelict 4551 | -10/Mines | Discovered exit to Materials (range 12) 4930 | -10/Mines | Entered Exiles 4930 | -10/Exiles | Accompanied by 4 allies 5032 | -10/Exiles | Met 8R-AWN 5073 | -10/Exiles | Met EX-HEX 5195 | -10/Exiles | Met EX-DEC 5233 | -10/Exiles | Learned location of Zion (-7) 5274 | -10/Exiles | Met EX-BIN 5312 | -10/Exiles | Aligned with FarCom system 5315 | -10/Exiles | Given EX-Vault access code 5382 | -10/Exiles | Opened EX-Vault 5405 | -10/Exiles | Found Latent Energy Streamer 5481 | -10/Exiles | Exiles lab attacked by MAIN.C 5681 | -10/Exiles | Discovered new exit (range 11) 5696 | -10/Exiles | Left Exiles lab with Latent Energy Streamer 5696 | -10/Exiles | Entered Mines 5696 | -9/Mines | Accompanied by 3 allies 5705 | -9/Mines | Core integrity fell below 20% 5929 | -9/Mines | Discovered new exit (range 14) 5946 | -9/Mines | Met a Derelict shopkeep closing up shop 5951 | -9/Mines | Learned Materials security intel 5982 | -9/Mines | Entered Materials 5982 | -8/Materials | Accompanied by 2 allies 5982 | -8/Materials | Evolved 4 slots: Propulsion x2, Utility x2 5983 | -8/Materials | Identified exit to Factory 6225 | -8/Materials | Central database locked down 6298 | -8/Materials | Build established: Scavenger-Mutant 6389 | -8/Materials | Repaired Grenade Launcher 6422 | -8/Materials | Repaired Imp. Treads 6841 | -8/Materials | Discovered exit to Factory (range 9) 6912 | -8/Materials | Met 7R-MNS 6927 | -8/Materials | Discovered exit to Factory (range 7) 7106 | -8/Materials | Learned Storage emergency access door positions 7166 | -8/Materials | Learned location of Storage (-7) 7214 | -8/Materials | Learned 2 Lower Caves zone layouts 7253 | -8/Materials | Learned location of Recycling (-7) 7280 | -8/Materials | Learned Factory trap positions 7333 | -8/Materials | Build established: Mutant 7379 | -8/Materials | Learned 2 Lower Caves zone layouts 7609 | -8/Materials | Entered Factory 7609 | -7/Factory | Evolved 2 slots: Utility x1, Weapon x1 7610 | -7/Factory | Caught up to 7R-MNS 7610 | -7/Factory | Loaded intel: 80 trap records 8111 | -7/Factory | Discovered new exit (range 12) 8143 | -7/Factory | Identified exit to Factory 8721 | -7/Factory | Discovered exit to Factory (range 8) 9023 | -7/Factory | Identified exit to Storage 9023 | -7/Factory | Identified exit to Lower Caves 9201 | -7/Factory | Entered Lower Caves 9971 | -7/Lower Caves | Entered an active Warlord outpost 9981 | -7/Lower Caves | Learned Research garrison access intel 10186 | -7/Lower Caves | Discovered new exit (range 7) 10343 | -7/Lower Caves | Entered another Lower Caves area 10573 | -7/Lower Caves | Discovered exit to Factory (range 10) 10667 | -7/Lower Caves | Attracted the attention of an 0b10 checkpoint 10956 | -7/Lower Caves | Discovered new exit (range 14) 10988 | -7/Lower Caves | Entered Zion 11110 | -7/Zion | System corruption cleaned by Quarantine Array 11210 | -7/Zion | Found Prototype Processor 11210 | -7/Zion | Identified Exp. Core Analyzer 11218 | -7/Zion | Found Prototype Processor 11218 | -7/Zion | Identified Exp. Terrain Scan Processor 11233 | -7/Zion | Found Prototype Processor 11233 | -7/Zion | Identified Exp. Melee Analysis Suite 11241 | -7/Zion | Found Prototype Processor 11241 | -7/Zion | Identified Spectral Analyzer 11248 | -7/Zion | Found Faulty Exp. Core Analyzer 11316 | -7/Zion | System corruption cleaned by Quarantine Array 11345 | -7/Zion | Discovered new exit (range 16) 11703 | -7/Zion | Learned location of Data Miner (-6) 11816 | -7/Zion | Acquired unknown access codes intercepted by a Zionite 11923 | -7/Zion | Given A8's code to call for help 12012 | -7/Zion | Rebuked by Imprinter 12293 | -7/Zion | Given the Hacking Drone Bay 12294 | -7/Zion | Found Prototype Device 12294 | -7/Zion | Identified Hacking Drone Bay 12334 | -7/Zion | Opened final containment barrier to the Deep Caves 12373 | -7/Zion | Discovered new exit (range 3) 12373 | -7/Zion | Saw the warning signs outside the Deep Caves entrance 12499 | -7/Zion | Learned 8 Factory zone layouts 12601 | -7/Zion | Gained Derelict followers 12757 | -7/Zion | Found CR-A16's Pointy Stick 13054 | -7/Zion | Entered Proximity Caves 13054 | -6/Proximity Caves | Accompanied by 2 allies 14030 | -6/Proximity Caves | Discovered exit to Factory (range 4) 14039 | -6/Proximity Caves | Entered Factory 14039 | -6/Factory | Evolved 2 slots: Propulsion x1, Utility x1 14040 | -6/Factory | Identified exit to Factory 14701 | -6/Factory | Discovered exit to Factory (range 15) 14894 | -6/Factory | Repaired Broken Hvy. Particle Cannon+? 15351 | -6/Factory | Repaired Hvy. Particle Cannon+ 15521 | -6/Factory | Lost 3 parts (1p2u) 15868 | -6/Factory | Entered another Factory area 15868 | -5/Factory | Evolved 2 slots: Power x1, Utility x1 15913 | -5/Factory | Identified exit to Upper Caves 15960 | -5/Factory | Build established: Scavenger-Assassin 16379 | -5/Factory | Discovered new exit (range 16) 16430 | -5/Factory | Identified exit to Factory 16654 | -5/Factory | Build established: Scavenger-Skirmisher 16976 | -5/Factory | Cargo convoy interrupted 17026 | -5/Factory | Destroyed 9 combat bots 17051 | -5/Factory | Lost 11 allies 17052 | -5/Factory | Found Prototype Launcher 17052 | -5/Factory | Identified Scatter Rocket Array 17068 | -5/Factory | First assault squad dispatched 17116 | -5/Factory | Found PL-3XN's Ring of Power 17134 | -5/Factory | System corruption reached 10% 17312 | -5/Factory | Lost 3 parts (3u) 17476 | -5/Factory | Entered another Factory area 17476 | -4/Factory | Evolved 2 slots: Utility x2 17492 | -4/Factory | Identified exit to Upper Caves 17492 | -4/Factory | Identified exit to Extension 17616 | -4/Factory | Found Prototype Processor 17616 | -4/Factory | Identified Exp. Signal Interpreter 17944 | -4/Factory | Found Prototype Launcher 17944 | -4/Factory | Identified Smartbomb Launcher 18412 | -4/Factory | Entered Extension 18475 | -4/Extension | Build established: Scavenger-Assassin 18576 | -4/Extension | Rescued a captive Derelict 18600 | -4/Extension | Rescued a captive Derelict 18601 | -4/Extension | Rescued a captive Derelict 18752 | -4/Extension | Rescued A7 18779 | -4/Extension | Rescued a captive Derelict 18781 | -4/Extension | Rescued a captive Derelict 18802 | -4/Extension | Build established: Scavenger-Tank 18808 | -4/Extension | Lost 6 allies 18957 | -4/Extension | Lost 5 allies 19290 | -4/Extension | Found Powered Armor 19293 | -4/Extension | Found Powered Armor 19314 | -4/Extension | Found Powered Armor 19337 | -4/Extension | Spotted B-86 Titan 19351 | -4/Extension | Destroyed B-86 Titan 19365 | -4/Extension | Spotted B-86 Titan 19378 | -4/Extension | Allies destroyed B-86 Titan 19420 | -4/Extension | Lost 3 allies 19559 | -4/Extension | Identified exit to Research 19707 | -4/Extension | Build established: Scavenger-Skirmisher 19770 | -4/Extension | Rescued a captive Derelict 19826 | -4/Extension | Identified exit to Cetus 19936 | -4/Extension | Entered Cetus 19936 | -4/Cetus | Accompanied by 8 allies (A7) 19941 | -4/Cetus | Acquired a Cetus Manufacturing Module code from A7 19944 | -4/Cetus | Spotted Cetus Guard 19944 | -4/Cetus | Spotted Cetus Guard 19947 | -4/Cetus | Spotted Cetus Guard 19949 | -4/Cetus | Spotted Cetus Guard 19960 | -4/Cetus | Allies destroyed Cetus Guard 19970 | -4/Cetus | Allies destroyed Cetus Guard 19976 | -4/Cetus | Allies destroyed Cetus Guard 19977 | -4/Cetus | Allies destroyed Cetus Guard 20000 | -4/Cetus | Lost 4 allies 20020 | -4/Cetus | System corruption reached 10% 20101 | -4/Cetus | System corruption reached 30% 20211 | -4/Cetus | Started Cetus Manufacturing Module 20236 | -4/Cetus | Manufactured an Enhanced Grunt 20244 | -4/Cetus | Escorted A7 to Cetus Mainframe 20251 | -4/Cetus | Build established: Scavenger-Tank 20261 | -4/Cetus | Manufactured an Enhanced Grunt 20286 | -4/Cetus | Manufactured an Enhanced Grunt 20311 | -4/Cetus | Manufactured an Enhanced Grunt 20336 | -4/Cetus | Manufactured an Enhanced Grunt 20359 | -4/Cetus | Discovered new exit (range 22) 20412 | -4/Cetus | Spotted Cetus Guard 20413 | -4/Cetus | Spotted Cetus Guard 20415 | -4/Cetus | Spotted Cetus Guard 20418 | -4/Cetus | Discovered exit to Research (range 23) 20418 | -4/Cetus | Spotted Cetus Guard 20434 | -4/Cetus | Allies destroyed Cetus Guard 20440 | -4/Cetus | Allies destroyed Cetus Guard 20453 | -4/Cetus | Allies destroyed Cetus Guard 20456 | -4/Cetus | Extracted ID and sensor layout for unrecognized location from A7's data core 20461 | -4/Cetus | Found Prototype Device 20461 | -4/Cetus | Identified Exp. Thermal Shield 20474 | -4/Cetus | Lost 3 allies 20495 | -4/Cetus | Met Revision 17 20561 | -4/Cetus | Entered Archives 20561 | -4/Archives | Accompanied by 6 allies 20612 | -4/Archives | Discovered new exit (range 23) 20673 | -4/Archives | Discovered new exit (range 23) 20689 | -4/Archives | Discovered exit to Research (range 23) 20734 | -4/Archives | Entered Research 20734 | -3/Research | Accompanied by 6 allies 20734 | -3/Research | Evolved 2 slots: Utility x2 20735 | -3/Research | Loaded intel: 4 garrison access locations 20795 | -3/Research | Garrison activated, responded to threat 20839 | -3/Research | Lost 6 allies 20879 | -3/Research | Destroyed 7 combat bots 20934 | -3/Research | Revision forces began assault on 0b10 21002 | -3/Research | Met up with Revision 17++ 21302 | -3/Research | Spotted B-86 Titan 21357 | -3/Research | Found Exp. Thermal Shield 21361 | -3/Research | Found Exp. Thermal Shield 21433 | -3/Research | Identified exit to Armory 21433 | -3/Research | Identified exit to Quarantine 21434 | -3/Research | Research terminal network offline 21541 | -3/Research | Spotted Striker 21542 | -3/Research | Spotted Striker 21550 | -3/Research | Destroyed Striker 21692 | -3/Research | Spotted Executioner 21692 | -3/Research | Spotted Striker 21710 | -3/Research | Destroyed Striker 21820 | -3/Research | Spotted Striker 21885 | -3/Research | Destroyed Striker 21900 | -3/Research | Lost 8 allies 21914 | -3/Research | Lost 5 parts (2n2u1w) 22018 | -3/Research | Found Fusion Bomb Launcher 22053 | -3/Research | Found Prototype Device 22053 | -3/Research | Identified Exp. Shield Generator 22306 | -3/Research | Entered Armory 22561 | -3/Armory | Found Quantum Capacitor 22845 | -3/Armory | Build established: Scavenger-Mutant 23023 | -3/Armory | Spotted B-86 Titan 23319 | -3/Armory | Found Fusion Bomb Launcher 23416 | -3/Armory | Build established: Scavenger-Tank 23709 | -3/Armory | System corruption reached 10% 23818 | -3/Armory | Found Prototype Hackware 23818 | -3/Armory | Identified Exp. Hacking Suite 24079 | -3/Armory | Discovered new exit (range 3) 24085 | -3/Armory | Build established: Tank 24118 | -3/Armory | Entered Lab 24118 | -3/Lab | Discovered new exit (range 9) 24136 | -3/Lab | Hidden lab's door opened automatically 24136 | -3/Lab | Sensor layout match revealed 24137 | -3/Lab | Gained access to the hidden lab's interior 24295 | -3/Lab | Found Alien Artifact 24474 | -3/Lab | Found Prototype Energy Gun 24474 | -3/Lab | Identified Tachyon Dispersion Ray 24479 | -3/Lab | Found Prototype Energy Cannon 24479 | -3/Lab | Identified Warp Cannon 24486 | -3/Lab | Found Prototype Protection 24486 | -3/Lab | Identified Exp. Powered Armor 24491 | -3/Lab | Found Prototype Hackware 24553 | -3/Lab | Detected by scanners 24562 | -3/Lab | Confronted by A5 24573 | -3/Lab | Destroyed A5 24665 | -3/Lab | Identified Core Reset Matrix 24665 | -3/Lab | Used Core Reset Matrix 24669 | -3/Lab | Sensed 3 artifacts in vicinity 24686 | -3/Lab | Discovered new exit (range 6) 24767 | -3/Lab | Found Core Expander 24767 | -3/Lab | Installed Core Expander, added new Propulsion slot 24774 | -3/Lab | Found Integrated Dissipator 24774 | -3/Lab | Installed Integrated Dissipator, increased core heat dissipation (+20) 24780 | -3/Lab | Found Transdimensional Reconstructor 24797 | -3/Lab | Identified Quantum Router 24887 | -3/Lab | Unable to decrypt terminal 24995 | -3/Lab | Entered Research 24995 | -2/Research | Evolved 2 slots: Utility x2 25282 | -2/Research | Build established: Hacker-Tank 25508 | -2/Research | Intercept squad dispatched 25509 | -2/Research | Spotted Tracker 25512 | -2/Research | Destroyed Tracker 25513 | -2/Research | Spotted Tracker 25519 | -2/Research | Destroyed Tracker 25545 | -2/Research | Found Prototype Energy Gun 25545 | -2/Research | Identified Immobilizer 25563 | -2/Research | Spotted Combat Programmer 25563 | -2/Research | Destroyed Combat Programmer 25573 | -2/Research | Found Prototype Device 25573 | -2/Research | Identified Exp. Phase Shifter 25603 | -2/Research | Discovered new exit (range 5) 25606 | -2/Research | Spotted Combat Programmer 25614 | -2/Research | Destroyed Combat Programmer 25629 | -2/Research | Identified exit to Testing 26215 | -2/Research | Found Prototype Launcher 26215 | -2/Research | Identified Hellfire Missile Launcher 26286 | -2/Research | Found Quantum Capacitor 26492 | -2/Research | Warp Cannon suddenly broke down 26508 | -2/Research | Identified exit to Access 26565 | -2/Research | Entered Access 26565 | -1/Access | Evolved 2 slots: Power x1, Utility x1 26782 | -1/Access | Unchained authorized (V4-D3R) 27304 | -1/Access | Discovered new exit (range 7) 27698 | -1/Access | Entered Command 27819 | -1/Command | Disengaged cave seal 27819 | -1/Command | Assembled emerged from the dark tunnel 27933 | -1/Command | Spotted B-99 Colossus 27937 | -1/Command | Destroyed B-99 Colossus 27992 | -1/Command | Found Unknown Protection 27992 | -1/Command | Identified Hvy. Insulated Plating 28001 | -1/Command | Lost 3 allies 28088 | -1/Command | Lost 8 allies 28198 | -1/Command | First assault squad dispatched 28318 | -1/Command | Build established: Hacker-Gunner 28533 | -1/Command | System corruption reached 10% 28555 | -1/Command | Lost 6 allies 28565 | -1/Command | Destroyed 7 combat bots 28627 | -1/Command | Spotted M Guard 28627 | -1/Command | Spotted M Guard 28627 | -1/Command | Spotted Combat Programmer 28629 | -1/Command | Spotted Combat Programmer 28660 | -1/Command | Destroyed Combat Programmer 28692 | -1/Command | Destroyed Combat Programmer 28700 | -1/Command | Destroyed M Guard 28715 | -1/Command | Destroyed M Guard 28715 | -1/Command | All MAIN.C guards destroyed 28727 | -1/Command | Lost 3 parts (1p2u) 28814 | -1/Command | Build established: Hacker-Tank 28888 | -1/Command | Spotted Alpha 7 29041 | -1/Command | Destroyed 10 combat bots 29167 | -1/Command | Found Prototype Ballistic Gun 29167 | -1/Command | Identified Multirail 29562 | -1/Command | Met MAIN.C 29568 | -1/Command | 0b10 Conduit disabled 29599 | -1/Command | Destroyed MAIN.C Shell 29600 | -1/Command | MAIN.C activated Command garrisons 29692 | -1/Command | Failed to warp due to unstable space 29698 | -1/Command | Released all parts (12) 29704 | -1/Command | Core integrity fell below 50% 29712 | -1/Command | Emitted hypermatrix ping 29713 | -1/Command | Core integrity fell below 20% 29713 | -1/Command | Destroyed by C-57 Dissector with Dual-blade Saw Last Messages --------------- 29710_ X-87 Electro suffers critical hit (Destroy). 29710_ X-87 Electro destroyed. 29710_ Slug penetrates Wall. 29711_ Slug penetrates Reinforced Barrier. 29711_ Penetrated by Slug. 29711_ Door malfunctions. 29711_ C-45 Heavy ARC bursts open, deploying its payload. 29711_ H-88 Terminator unfolds itself. 29711_ Slug penetrates Wall. 29711_ Penetrated by Slug. 29711_ I-47 Archangel sends out distress signal. 29712_ Emitted hypermatrix ping. 29712_ Penetrated by Slug. 29713_ Slug penetrates G-73 Enforcer. 29713_ Penetrated by Slug. 29713_ C-45 Heavy ARC bursts open, deploying its payload. 29713_ P-80 Master unfolds itself. Map ----- +----------------------------------------------------+ | ????????????????????????????????????????????## | | ???????????????????????????????????????????###+### | | ???????????????????????????????????????????# | | ???????????????????????????????????????????# | | ???????????????????????????????????????????# | | ???????????????????????????????????????????# | | ???????????????????????????????????????????# ! | | ?????????????????????????i?????????????????# | | ???????????????????????? g????????????????# | | ???????????????????????#p h????????????????###### | | ???????????????????????#x #?????????????????????# | | ???????????????????????# #?????????????????????# | | ???????????????????????# g#?????????????????????# | | ???????????????????????#pg #?????????????????????? | | ???????????????????????#p #?????????????????????? | | #####################??# #?????????????????????? | | p #??# #?????????????????????? | | = #??# #?????????????????????? | | % #??# #?????????????????????? | | ################# #??# #?###?###?????????????? | | ????????????????# M #??# ### ### #?????????????? | | ????????????????# =!##?# # # # ###########???? | | ????????????????#!%! ###x!g## # ;## ###?? | | ????????????????#///###!!% !# W W ### #"### | | ????????????????# ]=!x x i / | | ????????????????# c c@ | | ????????????????# [ | | ????????????????# ixs !%= + | | ????????????????# s sh !!= = h | | ????????????????# ###phh;## W #|%* # #### | | ????????????????######?# hh### ##=! ### #??# | | ???????????????????????# h############ # # #?# | | ???????????????????????# xh#?# ###### ##?# | | ???????????????????????# s#?## # ### #####??# | | ???????????????????????# s #??# ## # # #??????# | | ???????????????????????# h #??## # #??????# | | ???????????????????????# #???### ## # ##??????# | | ???????????????????????# s#?????###?### ???????# | | ????????????????????????p C#???????????####??????# | | ????????????????????????p #?????????????????????# | | ????????????????????????p ??????????????????????# | | ??????????????????????????h??????????????????????# | | ????????????????????????x????????????????????????# | | ?????????????????????????????????????????????????# | | ?????????????????????????????????????????????????# | | ????????????????????????????????????????????###### | | ????????????????????????????????????????????# =% | | ????????????????????????????????????????????# |! | | ????????????????????????????????????????????# * | | ??????????????????????????????????????????## | +----------------------------------------------------+ Best States ------------- Heat Dissipation 181 Coolant Potential 120 Energy Generation 65 Energy Capacity 850 Matter Stores 300 Matter Capacity 300 Sight Range 23 Robot Scan Range 16 Terrain Scan Range 24 Terrain Scan Density 1010 ECM Strength 2 Jamming Range 16 Additional Mass Support 16 Base Temperature (-) 150 Armor Coverage 1600 Resistance: KI 30 Resistance: TH 30 Resistance: EM 30 Utility Shielding 66 Point Defense Rating 240 Weapon Cycling 25 Phase Shifting 20 Evasion (%) 60 Core Analysis 6 Armor Integrity Analysis 30 Recoil Reduction 6 Matter Filtering 30 Energy Filtering 50 Particle Charging 25 Offensive Hacking 26 Defensive Hacking 39 Authchip Count 1 Trap Extractor Capacity 6 Item Schematics ----------------- None Robot Schematics ------------------ None Fabricated ------------ Nothing Repaired ---------- Seismic Detector | 20% | -10/Materials Grenade Launcher | 3% | -8/Materials Imp. Treads | 49% | -8/Materials Hvy. Particle Cannon | 99% | -6/Factory | Broken Hvy. Particle Cannon | 18% | -6/Factory Studied --------- None Alien Tech Used ----------------- Core Reset Matrix Core Expander Integrated Dissipator Transdimensional Reconstructor Achievements -------------- None Challenges ------------ None Game ------ Seed CoordinationThiefManipulator Manual? 0 Play Time 04:13:23 Cumulative 344.9 hours Start 2026.02.02 @ 19:48:56 End 2026.02.03 @ 00:29:03 Sessions 1 Manual Loads 0 Difficulty Rogue Special Mode None Game No. 222 Rogue 222 Adventurer 0 Explorer 0 Win Type - Total 13 Types 9/1/1/1/0/0/0/1/0/0 Lore% 93 Gallery% 82 Achievement% 68 Wizard Run 0 Options --------- Layout 1 ASCII 0 Keyboard 0 Movement Mouse Keybinds 0 Fullscreen 2 Font 32/SmallcapsGlow Map View 50x35 Zoom Use 0% Tactical HUD 1 Map Filters NONE Filters NONE Steam 1 RUN: 356be562-a35f-4e88-9c9f-a37934e04822